bitfinex/quotes_ETHUSD_20250721
["timestamp","ask_amount","ask_price","bid_price","bid_amount"]
[1753097862620,0.4597,3830.9,3830.8,2.61042079]
[1753097862845,1.2231,3830.9,3830.8,4.223]
[1753097863234,1.2231,3830.9,3830.8,6.83342079]
[1753097863642,0.7634,3830.9,3830.8,6.83342079]
[1753097863833,0.10867331,3831.0,3830.9,2.61035265]
[1753097864853,0.56837331,3831.0,3830.9,2.61035265]
[1753097865154,0.7848,3830.9,3830.1,2.61184901]
[1753097865353,0.1304,3830.3,3830.2,4.222]
[1753097865652,0.5901,3830.3,3830.2,4.222]
[1753097865856,0.5901,3830.3,3830.2,6.83282972]
[1753097866057,0.1304,3830.3,3830.2,6.83282972]
[1753097867546,0.002,3830.7,3830.4,2.61063441]
[1753097867751,0.002,3830.7,3830.5,4.221]
[1753097867930,0.1324,3830.7,3830.6,2.61055709]
[1753097869160,0.1324,3830.7,3830.6,6.83155709]
[1753097869363,0.1324,3830.7,3830.6,2.61055709]
[1753097869552,0.1324,3830.7,3830.6,6.83155709]
[1753097869928,0.1324,3830.7,3830.1,0.001]
[1753097870269,0.1324,3830.7,3830.4,2.61064384]
[1753097870574,0.4296,3830.6,3830.5,4.22]
[1753097871345,0.1324,3830.7,3830.3,1.0]
[1753097871346,0.1324,3830.7,3830.3,3.61073391]
[1753097871567,0.002,3830.7,3830.5,2.6105842]
[1753097871752,0.002,3830.7,3830.6,4.22]
[1753097871753,0.4316,3830.7,3830.6,4.22]
[1753097871952,1.189,3830.7,3830.6,4.22]
[1753097872131,0.002,3830.7,3830.6,2.61055709]
[1753097873338,0.4316,3830.7,3830.6,4.219]
[1753097873654,1.2364,3830.7,3830.6,4.219]
[1753097873970,0.8068,3830.7,3830.6,6.82955709]
[1753097874153,0.002,3830.7,3830.6,6.82955709]
[1753097874666,0.8202,3830.6,3830.3,1.0]
[1753097875030,0.4296,3830.5,3830.3,1.0]
[1753097875258,0.8202,3830.6,3830.3,1.0]
[1753097876176,3.04022828,3830.5,3830.3,1.0]
[1753097876336,2.61062828,3830.5,3830.3,1.0]
[1753097876536,3.0402934,3830.4,3830.3,1.0]
[1753097876964,0.4296,3830.4,3830.3,1.0]
[1753097877165,3.0402934,3830.4,3830.3,1.0]
[1753097877338,3.8145934,3830.4,3830.3,1.0]
[1753097880553,0.002,3830.7,3830.3,1.0]
[1753097880966,0.1304,3830.4,3830.3,1.0]
[1753097881350,0.1304,3830.4,3830.3,3.61076155]
[1753097881554,0.1304,3830.4,3830.3,1.0]
[1753097881750,0.1304,3830.4,3830.3,3.61076155]
[1753097881966,0.002,3830.7,3830.6,2.61055709]
[1753097883338,0.002,3830.7,3830.5,2.61061203]
[1753097883579,0.1304,3830.6,3830.4,2.61067282]
[1753097883879,0.1304,3830.6,3830.3,3.61074004]
[1753097884041,0.002,3830.7,3830.5,2.61061772]
[1753097884248,0.002,3830.7,3830.6,2.61055709]
[1753097885275,0.002,3830.7,3830.6,3.05875709]
[1753097885479,0.002,3830.7,3830.6,2.61055709]
[1753097886770,0.1304,3830.6,3830.5,2.61059133]
[1753097886970,0.1304,3830.6,3830.3,1.0]
[1753097887280,0.1304,3830.6,3830.5,2.61062524]
[1753097887486,1.2467,3830.5,3830.3,1.0]
[1753097887643,0.8171,3830.5,3830.3,3.61071483]
[1753097887842,0.8171,3830.5,3830.3,1.0]
[1753097888165,1.2467,3830.5,3830.3,1.0]
[1753097889690,5.4607,3830.5,3830.3,1.0]
[1753097889890,8.0713404,3830.5,3830.3,1.0]
[1753097890078,5.4607,3830.5,3830.3,1.0]
[1753097890275,8.0713354,3830.5,3830.3,1.0]
[1753097890453,3.0402934,3830.4,3830.3,1.0]
[1753097891292,0.4296,3830.4,3830.3,1.0]
[1753097891989,3.8249934,3830.4,3830.3,0.89137761]
[1753097892189,6.94552972,3830.2,3830.1,0.001]
[1753097892587,7.37512972,3830.2,3830.1,0.001]
[1753097893582,7.37512972,3830.2,3830.1,1e-08]
[1753097894191,3.98757058,3829.7,3829.6,0.001]
[1753097894492,17.14906494,3829.7,3829.6,0.001]
[1753097894679,17.57866494,3829.7,3829.6,0.001]
[1753097895659,20.57866494,3829.7,3829.6,0.001]
[1753097896790,3.98777515,3829.4,3829.3,0.001]
[1753097896988,11.19977515,3829.4,3829.3,0.001]
[1753097897295,11.62827515,3829.4,3829.3,1e-08]
[1753097897497,11.8242015,3829.4,3829.3,1e-08]
[1753097898200,6.93681615,3828.9,3828.8,0.001]
[1753097898406,20.09731051,3828.9,3828.8,0.001]
[1753097898700,2.6119208,3828.6,3828.5,0.001]
[1753097898996,38.1413208,3828.6,3828.5,1e-08]
[1753097899197,2.61253494,3827.7,3827.6,0.001]
[1753097899400,7.59653494,3827.7,3827.6,0.001]
[1753097899701,23.07503494,3827.7,3827.6,0.001]
[1753097900108,2.742,3827.4,3825.4,0.001]
[1753097900405,2.742,3827.4,3825.1,0.001]
[1753097900406,1.3125,3825.2,3825.1,0.001]
[1753097900605,7.61388088,3825.2,3825.1,0.001]
[1753097900789,22.08774239,3825.2,3825.1,0.001]
[1753097901182,22.51624239,3825.2,3825.1,0.001]
[1753097901381,22.08774239,3825.2,3825.1,0.001]
[1753097901778,2.61508886,3824.0,3823.8,0.4498]
[1753097901992,2.64126963,3823.9,3823.8,0.4498]
[1753097902174,0.1304,3823.8,3823.3,0.4498]
[1753097902499,11.56403756,3824.8,3821.9,0.12444271]
[1753097902500,0.1304,3823.4,3822.7,0.9232]
[1753097902800,0.1304,3823.4,3823.2,2.61554274]
[1753097902973,0.1304,3823.8,3823.4,2.61540611]
[1753097903170,4.212,3823.7,3823.4,0.4498]
[1753097903480,0.02613849,3823.6,3823.4,0.4498]
[1753097903788,0.1304,3823.4,3822.7,0.7928]
[1753097904007,0.1304,3823.1,3822.9,0.4498]
[1753097904168,0.1304,3823.1,3823.0,0.4498]
[1753097904730,0.1304,3823.1,3823.0,3.06554679]
[1753097904889,0.02613849,3823.9,3823.6,2.61531367]
[1753097905071,0.1304,3823.4,3823.3,2.61549839]
[1753097905409,0.1304,3823.4,3823.1,0.02615678]
[1753097905605,4.23913849,3823.3,3822.5,0.4498]
[1753097905806,4.23913849,3823.3,3821.4,2.64295716]
[1753097905807,0.02613849,3823.3,3822.9,2.61580735]
[1753097905980,4.213,3823.2,3823.0,0.4498]
[1753097906183,2.61533894,3823.6,3823.1,0.4498]
[1753097906372,4.23913849,3823.5,3822.7,0.4498]
[1753097906571,6.85454626,3823.5,3822.7,3.44779634]
[1753097906872,2.61581406,3823.0,3822.6,0.001]
[1753097907116,4.23913849,3822.9,3822.6,2.6169891]
[1753097907399,0.02613849,3822.8,3822.6,2.6170185]
[1753097907573,0.02613849,3822.8,3822.7,2.61595207]
[1753097907899,4.23913849,3822.9,3822.6,0.001]
[1753097908306,0.02613849,3822.9,3822.6,0.001]
[1753097908483,4.213,3822.8,3822.6,0.001]
[1753097908803,4.213,3822.8,3822.7,2.61595207]
[1753097909182,0.45463849,3823.4,3822.6,0.001]
[1753097909385,4.214,3823.3,3822.6,0.001]
[1753097909587,0.02613849,3823.2,3822.6,0.001]
[1753097909903,0.02613849,3823.4,3823.2,2.61560996]
[1753097910201,4.214,3823.3,3822.6,0.001]
[1753097910417,0.7995,3822.6,3820.9,2.61717735]
[1753097910574,2.61629428,3822.2,3821.2,2.61792053]
[1753097910773,0.02613849,3822.1,3821.2,0.001]
[1753097910975,3.0,3822.0,3821.2,0.001]
[1753097911322,3.0,3822.0,3821.8,1e-08]
[1753097911323,51.46493813,3821.9,3821.8,1e-08]
[1753097911469,30.816794,3821.9,3821.8,1e-08]
[1753097911669,3.93961047,3821.3,3821.2,0.001]
[1753097911910,20.12924332,3821.3,3821.2,0.001]
[1753097912077,16.51664886,3821.3,3821.2,0.001]
[1753097912277,35.03160483,3821.3,3821.2,0.001]
[1753097913108,35.22566639,3821.3,3821.2,0.001]
[1753097913281,33.18463626,3821.3,3821.2,0.001]
[1753097914281,3.37483252,3820.1,3818.8,0.7717]
[1753097914478,3.40097101,3820.1,3819.1,2.61839716]
[1753097914681,7.61697101,3820.1,3819.0,2.61848079]
[1753097914883,3.37483252,3820.1,3818.8,0.7717]
[1753097915224,8.04547101,3820.1,3818.8,0.7717]
[1753097915382,8.01933252,3820.1,3819.1,2.61837047]
[1753097915582,3.37483252,3820.1,3818.8,0.7717]
[1753097915777,14.5,3820.1,3819.5,2.61812919]
[1753097915983,4.216,3820.5,3820.0,0.7868]
[1753097916204,0.8029,3820.3,3820.0,0.337]
[1753097916389,3.0,3820.4,3820.0,0.337]
[1753097916390,14.52613849,3820.2,3820.0,0.337]
[1753097916605,4.24213849,3820.1,3820.0,0.337]
[1753097917521,6.85987101,3820.1,3820.0,0.337]
[1753097917724,2.61773252,3820.1,3820.0,0.337]
[1753097917908,6.86087101,3820.1,3820.0,0.337]
[1753097918105,6.83473252,3820.1,3820.0,0.337]
[1753097918536,7.81323252,3820.1,3820.0,0.337]
[1753097918737,0.8047,3819.9,3818.4,0.001]
[1753097918916,2.6182663,3819.4,3818.6,2.61870608]
[1753097919113,0.02613849,3819.6,3818.7,0.47598692]
[1753097919314,0.02613849,3819.6,3818.7,0.4498]
[1753097919502,0.02613849,3819.9,3819.3,2.61826811]
[1753097919702,0.02613849,3819.9,3819.4,2.61818889]
[1753097920005,0.02613849,3819.9,3818.6,3.06849956]
[1753097920300,2.61825927,3819.4,3818.4,2.6198768]
[1753097920638,0.02613849,3819.3,3818.5,0.4498]
[1753097920839,14.5,3819.2,3818.8,2.61855959]
[1753097921039,0.7721,3820.2,3818.9,0.4498]
[1753097921239,0.02613849,3820.1,3819.7,2.6179568]
[1753097921535,0.02613849,3820.1,3819.8,3.06772244]
[1753097921739,2.61704401,3821.2,3819.8,3.06768645]
[1753097922036,4.24413849,3820.9,3820.0,2.61777809]
[1753097922337,14.5,3820.8,3819.9,0.7524]
[1753097922539,0.02613849,3820.7,3820.5,2.61744068]
[1753097922705,4.24413849,3821.1,3820.5,0.4498]
[1753097923036,4.24413849,3821.1,3819.9,1.08943529]
[1753097923037,18.74413849,3821.1,3820.1,0.4498]
[1753097923255,18.718,3821.1,3820.1,0.4498]
[1753097923451,2.61721677,3820.9,3820.1,3.06752346]
[1753097923647,0.02613849,3820.8,3820.3,2.61754924]
[1753097923950,0.02613849,3820.8,3820.4,0.4498]
[1753097924153,4.218,3821.3,3820.5,2.61745844]
[1753097924307,0.02613849,3821.2,3820.5,2.61745844]
[1753097924505,2.6431398,3821.2,3820.5,2.61745844]
[1753097924799,2.61704873,3821.1,3820.5,2.61745844]
[1753097925002,2.64330683,3821.0,3820.3,2.61757129]
[1753097925206,2.61724777,3820.9,3819.9,3.37026955]
[1753097925401,2.64339828,3820.8,3819.9,0.7524]
[1753097925603,2.64345037,3820.8,3819.9,0.7524]
[1753097925858,2.61732143,3820.7,3819.9,3.37021408]
[1753097926060,2.61751081,3820.5,3819.8,3.06772173]
[1753097926214,0.02613849,3820.4,3819.8,0.4498]
[1753097926567,4.9907,3820.9,3819.8,0.4498]
[1753097926568,0.02613849,3820.8,3819.8,0.4498]
[1753097926846,0.1304,3819.8,3819.7,2.61800664]
[1753097927150,0.1304,3819.8,3819.7,3.04650664]
[1753097927315,0.1304,3819.8,3819.6,2.6180204]
[1753097927513,0.1304,3819.6,3819.5,3.36983819]
[1753097928126,0.1304,3819.6,3819.5,3.79833819]
[1753097930549,0.1304,3819.6,3819.5,3.79834373]
[1753097932717,0.1304,3819.6,3819.5,3.79934373]
[1753097933019,4.219,3820.5,3819.7,2.6179892]
[1753097933020,0.02613849,3820.4,3819.7,2.6179892]
[1753097933260,0.1304,3819.9,3819.8,3.04643811]
[1753097933625,0.1304,3819.9,3819.8,2.61793811]
[1753097933957,0.1304,3819.9,3819.8,3.04643811]
[1753097934363,0.02813849,3820.6,3820.5,2.61745844]
[1753097934561,0.002,3820.6,3820.5,2.61745844]
[1753097934867,0.002,3820.6,3820.5,3.04595844]
[1753097935856,0.002,3821.4,3821.1,2.61704744]
[1753097936063,0.002,3821.4,3821.3,2.61691047]
[1753097936563,0.1304,3821.3,3820.7,0.1304]
[1753097936868,0.002,3821.4,3821.0,2.61710408]
[1753097937189,0.002,3821.4,3820.4,4.24517526]
[1753097937190,0.1304,3821.0,3820.9,2.61718443]
[1753097937333,0.002,3821.4,3821.3,2.61691047]
[1753097937848,0.002,3821.4,3821.3,3.04541047]
[1753097938329,0.002,3821.4,3821.3,3.07157957]
[1753097938529,0.002,3821.4,3821.3,3.04541047]
[1753097938728,4.218,3822.3,3822.0,2.61641245]
[1753097938931,0.02613849,3822.2,3822.0,2.61641245]
[1753097939360,0.02613849,3822.7,3822.0,2.61641245]
[1753097939560,2.6421054,3822.7,3821.8,2.61656072]
[1753097939760,0.1304,3822.0,3821.9,2.61649964]
[1753097940149,0.1304,3822.0,3821.9,3.04499964]
[1753097941459,0.1304,3822.0,3821.7,4.218]
[1753097941658,0.02613849,3822.6,3821.7,4.218]
[1753097941659,0.02613849,3822.3,3821.7,4.218]
[1753097941879,0.02613849,3822.5,3821.8,0.4285]
[1753097942082,0.1304,3822.0,3821.8,0.4285]
[1753097942245,0.1304,3822.0,3821.7,4.218]
[1753097942246,0.1304,3822.0,3821.9,3.04499964]
[1753097943198,0.1304,3822.2,3821.9,1.2608]
[1753097943351,0.1304,3822.6,3822.0,0.4285]
[1753097943679,0.1304,3822.6,3822.5,2.61608894]
[1753097943985,0.02613849,3823.8,3823.2,2.61560996]
[1753097944184,0.02613849,3823.8,3823.6,2.61533633]
[1753097944382,8.894361,3825.1,3823.3,0.4285]
[1753097944383,0.02613849,3824.0,3823.5,2.61536931]
[1753097944583,0.02613849,3824.0,3823.4,2.61547106]
[1753097944781,0.02613849,3824.0,3823.6,2.61533633]
[1753097944983,0.02613849,3824.0,3823.9,2.61513114]
[1753097945186,0.1304,3823.9,3823.8,2.61519953]
[1753097945361,0.1304,3823.9,3823.8,3.04369953]
[1753097945869,0.1304,3823.9,3823.8,0.4285]
[1753097946069,0.1304,3823.9,3823.4,6.83243576]
[1753097946285,0.1304,3823.5,3822.8,0.9296]
[1753097946591,0.1304,3823.5,3822.9,4.217]
[1753097946789,2.61525252,3823.8,3822.9,2.61581521]
[1753097946790,0.02613849,3823.4,3822.9,2.61581521]
[1753097947106,0.1304,3822.9,3822.8,2.61588364]
[1753097947954,0.1304,3822.9,3822.8,3.04438364]
[1753097948798,0.02613849,3823.8,3822.9,2.61575832]
[1753097948955,0.1304,3823.3,3822.9,2.61575832]
[1753097949156,0.1304,3823.3,3823.2,2.61560996]
[1753097949351,0.02613849,3824.0,3823.5,2.61536]
[1753097949550,0.1304,3823.5,3823.2,5.4044]
[1753097949793,0.1304,3823.5,3823.3,2.61554149]
[1753097949964,0.02613849,3823.8,3823.2,0.4285]
[1753097950174,0.1304,3823.3,3823.2,2.61560996]
[1753097951178,0.1304,3823.3,3822.7,3.4214444]
[1753097951363,0.1304,3823.3,3822.4,2.61615738]
[1753097951364,0.901,3823.3,3822.4,2.61615738]
[1753097951554,0.1304,3823.2,3823.0,2.61567885]
[1753097951757,0.02613849,3823.6,3822.5,0.78890196]
[1753097951989,0.02613849,3823.6,3822.5,0.4285]
[1753097952217,0.02613849,3823.6,3822.6,4.215]
[1753097952393,0.1304,3822.8,3822.7,3.04445207]
[1753097952582,0.02613849,3823.6,3822.7,3.04445207]
[1753097952583,0.1304,3823.1,3823.0,2.61574014]
[1753097952782,0.1304,3823.1,3823.0,3.04424014]
[1753097953184,0.1304,3823.1,3822.6,0.4285]
[1753097953388,0.02613849,3823.5,3822.9,2.61576827]
[1753097953890,2.64154602,3823.5,3822.8,2.61586323]
[1753097954082,0.1304,3822.9,3822.8,2.61586323]
[1753097954461,0.1304,3822.9,3822.3,0.1304]
[1753097954660,0.02813849,3823.6,3823.1,2.61562479]
[1753097954973,0.02813849,3823.6,3823.3,2.61553337]
[1753097955299,0.1304,3823.1,3823.0,2.61570897]
[1753097955591,0.002,3823.6,3823.3,2.61551291]
[1753097955762,0.1304,3823.3,3823.0,0.4285]
[1753097955962,0.1304,3823.3,3823.0,3.0442235]
[1753097956167,0.1304,3823.3,3823.0,2.6157235]
[1753097956589,0.1304,3823.3,3823.0,2.61573214]
[1753097956906,0.1304,3823.3,3822.9,2.61575662]
[1753097957116,0.1304,3823.3,3823.0,2.61573406]
[1753097957458,0.1304,3823.3,3823.1,2.61566131]
[1753097957873,0.1304,3823.3,3823.0,2.61574679]
[1753097958076,0.1304,3823.3,3823.1,3.07865128]
[1753097958610,0.1304,3823.3,3823.0,2.61573811]
[1753097958908,2.64348035,3823.6,3823.0,2.61573811]
[1753097959078,0.02813849,3823.6,3823.1,2.61567127]
[1753097959276,0.1304,3823.1,3823.0,2.61572156]
[1753097959481,0.02813849,3823.6,3823.5,2.61540473]
[1753097959726,0.1304,3823.3,3823.2,2.61556204]
[1753097959908,0.1304,3823.3,3823.2,3.07856204]
[1753097961281,0.002,3823.6,3823.5,2.61540473]
[1753097961815,0.002,3823.6,3823.5,3.07840473]
[1753097963021,0.1324,3823.6,3823.5,2.61540473]
[1753097963527,0.1324,3823.6,3823.3,4.213]
[1753097963686,0.8108,3823.6,3823.2,4.213]
[1753097963891,0.8108,3823.6,3823.1,2.61565821]
[1753097963892,0.1304,3823.3,3823.1,2.61565821]
[1753097964324,0.1304,3823.3,3823.0,4.213]
[1753097964325,0.1304,3823.3,3823.0,2.61572691]
[1753097964494,0.1304,3823.1,3822.9,4.213]
[1753097964816,0.1304,3823.1,3823.0,3.07874679]
[1753097965723,0.002,3823.6,3823.5,2.61540473]
[1753097966271,0.1324,3823.6,3823.5,3.07840473]
[1753097967395,0.002,3823.6,3823.5,3.07840473]
[1753097967801,0.002,3823.6,3823.5,6.07840473]
[1753097968007,0.002,3823.6,3823.5,6.10455877]
[1753097968728,0.002,3823.6,3823.5,7.60619322]
[1753097968875,0.002,3823.6,3823.5,7.58003918]
[1753097969080,0.002,3823.6,3823.5,11.79203918]
[1753097969620,0.002,3823.6,3823.5,3.07840473]
[1753097969825,0.002,3823.6,3823.5,7.29040473]
[1753097970320,0.002,3823.6,3823.5,6.82740473]
[1753097970694,0.002,3823.6,3823.5,7.29040473]
[1753097970894,0.002,3823.6,3823.5,10.29040473]
[1753097971115,0.002,3823.6,3823.5,11.78942377]
[1753097971557,0.1304,3824.3,3824.2,2.61492599]
[1753097971717,0.002,3824.4,3824.3,2.61485762]
[1753097972747,0.002,3824.4,3824.3,3.07785762]
[1753097973101,0.002,3824.4,3824.3,3.10400619]
[1753097973334,0.002,3824.4,3824.3,2.61485762]
[1753097973513,0.002,3824.4,3824.3,6.82585762]
[1753097973902,0.1324,3824.4,3824.3,7.28885762]
[1753097974229,0.002,3824.4,3824.3,7.28885762]
[1753097974599,0.002,3824.4,3824.3,6.82485762]
[1753097975145,0.002,3824.4,3824.3,2.61485762]
[1753097975299,0.002,3824.4,3824.3,6.82485762]
[1753097975845,0.002,3824.4,3824.3,8.55556853]
[1753097977050,0.002,3824.4,3824.3,7.28785762]
[1753097977613,0.002,3824.4,3824.3,10.28785762]
[1753097979867,0.002,3824.4,3824.3,10.28685762]
[1753097980727,0.002,3824.4,3824.3,9.82385762]
[1753097981121,0.002,3824.4,3824.2,2.61486487]
[1753097981476,0.1304,3824.3,3824.2,2.61492599]
[1753097981844,0.002,3824.4,3824.3,2.61485762]
[1753097982159,0.002,3824.4,3824.3,6.07785762]
[1753097982675,0.002,3824.4,3824.3,6.82285762]
[1753097982980,0.002,3824.4,3824.3,11.07115762]
[1753097983126,0.002,3824.4,3824.3,11.20155762]
[1753097984224,0.002,3824.4,3824.3,6.99355762]
[1753097984426,0.002,3824.4,3824.3,11.20155762]
[1753097985055,0.002,3824.4,3824.3,12.2237852]
[1753097986165,0.002,3824.4,3824.3,12.7737852]
[1753097986774,0.002,3824.4,3824.3,2.61485762]
[1753097987078,0.002,3824.4,3824.3,6.82285762]
[1753097987275,0.002,3824.4,3824.3,2.61485762]
[1753097987572,0.1324,3824.4,3824.3,2.61485762]
[1753097987773,0.1324,3824.4,3824.3,4.207]
[1753097988429,0.1324,3824.4,3824.3,6.82185762]
[1753097988842,0.1324,3824.4,3824.3,2.61485762]
[1753097989078,0.1324,3824.4,3824.3,6.82185762]
[1753097989285,0.002,3824.9,3824.8,3.16451579]
[1753097989570,0.002,3824.9,3824.8,6.84766094]
[1753097989731,0.002,3824.9,3824.8,10.38301579]
[1753097991276,0.002,3824.9,3824.8,5.74491579]
[1753097991476,0.002,3824.9,3824.8,9.82151579]
[1753097991988,0.002,3824.9,3824.8,9.82051579]
[1753097994407,0.002,3824.9,3824.5,0.1304]
[1753097994574,0.002,3824.9,3824.3,0.02614857]
[1753097994783,0.002,3824.9,3824.4,4.206]
[1753097994784,0.1304,3824.6,3824.4,4.206]
[1753097994978,0.1304,3824.6,3824.5,6.82072087]
[1753097995179,0.1304,3824.6,3824.5,4.206]
[1753097995792,0.1304,3824.6,3824.5,6.82072087]
[1753097996723,0.1304,3824.6,3824.5,4.206]
[1753097997278,0.8303,3824.5,3823.1,0.8164]
[1753097997510,0.02613849,3824.4,3823.2,4.66225609]
[1753097997710,0.02613849,3824.4,3823.8,2.61517485]
[1753097998027,0.02613849,3824.4,3823.9,4.205]
[1753097998028,2.64093741,3824.4,3823.9,4.205]
[1753097998213,0.02613849,3824.4,3823.9,4.205]
[1753097998385,0.45523849,3824.4,3823.9,4.205]
[1753097998585,0.4291,3824.3,3823.9,4.205]
[1753097998810,0.1304,3823.9,3823.8,2.61519914]
[1753097999107,0.02613849,3824.2,3823.9,2.61512747]
[1753097999294,0.8303,3824.5,3823.8,4.205]
[1753097999497,0.1304,3823.9,3823.8,0.4311]
[1753097999697,0.1304,3823.9,3823.8,7.25129953]
[1753097999898,0.85643849,3824.5,3824.1,2.61494173]
[1753098000104,0.1304,3824.1,3824.0,2.61506276]
[1753098001012,0.1304,3824.1,3824.0,6.82006276]
[1753098001709,0.1304,3824.1,3823.9,2.61511211]
[1753098002017,0.1304,3824.1,3823.9,6.82011211]
[1753098002511,0.1304,3824.1,3824.0,2.61506276]
[1753098002879,0.1304,3824.1,3824.0,3.03372863]
[1753098003084,0.1304,3824.1,3823.8,2.61518936]
[1753098003501,0.7771,3824.3,3823.1,0.001]
[1753098003814,0.02813849,3824.4,3823.1,0.001]
[1753098003815,0.1304,3823.3,3823.1,0.001]
[1753098004013,0.1304,3823.3,3823.2,6.81960996]
[1753098004189,0.1304,3823.3,3823.2,8.19695828]
[1753098005413,0.1304,3823.3,3823.2,6.81960996]
[1753098006125,0.1304,3823.3,3823.1,2.61666682]
[1753098006295,0.1304,3823.3,3823.2,4.204]
[1753098006725,0.1304,3823.3,3823.1,0.001]
[1753098007084,3.1750531,3823.3,3823.1,0.001]
[1753098007412,0.02613849,3823.2,3823.1,0.001]
[1753098008295,0.1304,3823.3,3823.1,0.001]
[1753098009153,3.86714845,3823.2,3823.1,0.001]
[1753098009443,0.82243849,3823.2,3823.1,0.001]
[1753098010150,3.43804845,3823.2,3823.1,0.001]
[1753098010319,0.82243849,3823.2,3823.1,0.001]
[1753098013199,1.25153849,3823.2,3823.1,0.001]
[1753098013499,3.86714845,3823.2,3823.1,0.001]
[1753098013933,0.82243849,3823.2,3823.1,0.001]
[1753098014734,3.43804845,3823.2,3823.1,0.001]
[1753098014936,3.86714845,3823.2,3823.1,0.001]
[1753098015238,0.82243849,3823.2,3823.1,0.001]
[1753098016141,3.43804845,3823.2,3823.1,0.001]
[1753098017848,0.82243849,3823.2,3823.1,0.001]
[1753098018741,3.43804845,3823.2,3823.1,0.001]
[1753098019516,3.90264845,3823.2,3823.1,0.001]
[1753098020442,4.45264845,3823.2,3823.1,0.001]
[1753098020825,3.90264845,3823.2,3823.1,0.001]
[1753098021045,7.64004845,3823.2,3823.1,0.001]
[1753098021230,7.61390996,3823.2,3823.1,0.001]
[1753098022461,8.07850996,3823.2,3823.1,0.001]
[1753098024436,7.61390996,3823.2,3823.1,0.001]
[1753098024624,8.07850996,3823.2,3823.1,0.001]
[1753098024962,3.87650996,3823.2,3823.1,0.001]
[1753098025165,8.10464845,3823.2,3823.1,0.001]
[1753098025324,7.61390996,3823.2,3823.1,0.001]
[1753098026063,3.06,3823.4,3823.1,0.4287]
[1753098026235,0.7763,3824.2,3823.1,0.4287]
[1753098026562,0.7763,3824.2,3823.6,2.61532579]
[1753098026721,4.22713849,3824.1,3823.5,2.61539242]
[1753098026923,4.22713849,3824.1,3823.3,0.4277]
[1753098027162,0.02613849,3824.1,3823.3,0.4277]
[1753098027366,4.201,3824.2,3823.4,0.34362801]
[1753098027523,0.02613849,3824.1,3823.4,0.34362801]
[1753098027729,4.201,3824.2,3823.7,2.61526094]
[1753098027968,4.201,3824.2,3823.7,3.04296094]
[1753098028527,0.02613849,3824.1,3823.7,0.4277]
[1753098028976,0.02613849,3824.1,3823.7,3.04295686]
[1753098029274,4.201,3824.2,3823.7,3.04295686]
[1753098029655,4.201,3824.2,3823.7,0.4277]
[1753098029840,0.02613849,3824.1,3823.7,0.4277]
[1753098030368,0.02613849,3824.1,3823.4,0.31747328]
[1753098030568,0.02613849,3824.1,3823.5,3.32864992]
[1753098030768,0.02613849,3824.1,3823.4,0.31747328]
[1753098030973,0.8263,3823.9,3823.1,0.001]
[1753098031261,2.61552537,3823.4,3823.1,0.001]
[1753098031460,0.02613849,3823.3,3823.1,0.001]
[1753098031662,0.02613849,3823.4,3823.1,0.001]
[1753098031865,2.64162804,3823.4,3823.1,0.001]
[1753098032086,2.64163406,3823.4,3823.1,0.001]
[1753098032367,2.61560996,3823.2,3823.1,0.001]
[1753098032571,0.02613849,3823.2,3823.1,0.001]
[1753098032941,4.199,3823.7,3823.1,0.001]
[1753098033145,2.61550834,3823.4,3823.1,0.001]
[1753098033345,0.02613849,3823.3,3823.1,0.001]
[1753098033727,0.02613849,3823.5,3823.1,0.001]
[1753098034248,0.02613849,3823.5,3823.1,0.4287]
[1753098034446,1.2336,3824.1,3823.2,0.4277]
[1753098034447,2.61510521,3824.0,3823.2,0.4277]
[1753098034682,2.61510521,3824.0,3823.1,0.001]
[1753098034683,4.199,3823.9,3823.1,0.001]
[1753098034832,2.61558752,3823.3,3823.1,0.001]
[1753098035035,2.64174845,3823.2,3823.1,0.001]
[1753098035441,3.10634845,3823.2,3823.1,0.001]
[1753098035879,7.30534845,3823.2,3823.1,0.001]
[1753098036166,7.27920996,3823.2,3823.1,0.001]
[1753098036733,8.10380996,3823.2,3823.1,0.001]
[1753098036958,11.65380996,3823.2,3823.1,0.001]
[1753098037160,11.65380996,3823.2,3822.4,0.001]
[1753098037161,3.44068894,3822.5,3822.4,0.001]
[1753098037363,7.66482743,3822.5,3822.4,0.001]
[1753098037570,8.10328894,3822.5,3822.4,0.001]
[1753098038143,11.10328894,3822.5,3822.4,0.001]
[1753098038574,11.65328894,3822.5,3822.4,0.001]
[1753098040757,14.71328894,3822.5,3822.4,0.001]
[1753098040961,7.63868894,3822.5,3822.4,0.001]
[1753098042016,3.44068894,3822.5,3822.4,0.001]
[1753098042171,4.198,3822.5,3822.4,0.001]
[1753098042555,0.7882,3822.8,3822.4,0.001]
[1753098042759,4.22313849,3822.7,3822.4,0.001]
[1753098042956,0.02613849,3822.7,3822.4,0.4287]
[1753098043157,4.198,3822.6,3822.4,0.4287]
[1753098043371,0.8083,3823.1,3822.4,0.001]
[1753098043572,4.22413849,3823.0,3822.5,0.4277]
[1753098044005,4.198,3822.9,3822.4,2.61713622]
[1753098044171,4.197,3822.8,3822.4,2.61713622]
[1753098044500,0.02613849,3823.0,3822.5,0.4277]
[1753098044687,4.197,3822.9,3822.5,0.4277]
[1753098044884,4.197,3822.9,3822.6,0.4277]
[1753098045084,4.22313849,3822.8,3822.4,0.001]
[1753098045466,6.83908331,3822.8,3822.4,0.001]
[1753098045682,4.197,3822.8,3822.5,0.4277]
[1753098045890,0.02613849,3822.7,3822.5,0.4277]
[1753098046705,2.61608894,3822.5,3822.4,0.001]
[1753098046979,4.197,3822.8,3822.5,0.4743]
[1753098047180,0.02613849,3822.7,3822.5,0.4743]
[1753098048111,4.197,3822.8,3822.6,0.4743]